bitfinex/quotes_SOLUSD_20251002
["timestamp","ask_amount","ask_price","bid_price","bid_amount"]
[1759428665502,10.87647521,231.57,231.44,20.8]
[1759428665683,10.87647521,231.48,231.44,20.8]
[1759428666582,11.59647521,231.48,231.44,20.8]
[1759428667304,0.72,231.57,231.46,20.8]
[1759428667603,0.72,231.57,231.43,15.1233232]
[1759428667604,0.72,231.57,231.5,20.8]
[1759428668100,0.72,231.57,231.51,20.8]
[1759428668818,0.72,231.57,231.49,0.7]
[1759428668819,4.31853515,231.56,231.49,0.7]
[1759428669410,5.03853515,231.56,231.49,0.7]
[1759428669614,5.03853515,231.56,231.52,20.8]
[1759428669823,11.59647521,231.55,231.52,20.8]
[1759428669984,10.87647521,231.53,231.44,4.32058784]
[1759428670185,10.87647521,231.51,231.43,4.32095602]
[1759428670384,10.87647521,231.49,231.45,20.8]
[1759428670618,11.59647521,231.49,231.45,20.8]
[1759428672093,11.59647521,231.52,231.46,20.8]
[1759428672302,10.87647521,231.5,231.46,20.8]
[1759428672503,10.87647521,231.5,231.47,0.7]
[1759428672812,10.87647521,231.54,231.47,21.5]
[1759428673318,15.19540314,231.54,231.47,5.02010844]
[1759428673502,15.19540314,231.54,231.47,25.82010844]
[1759428674514,0.72,231.53,231.47,20.8]
[1759428674682,0.72,231.53,231.41,10.80322622]
[1759428674683,0.72,231.52,231.41,11.50322622]
[1759428674885,0.72,231.51,231.41,11.50322622]
[1759428675208,0.72,231.51,231.44,20.8]
[1759428675388,10.87647521,231.53,231.45,21.5]
[1759428675583,11.59647521,231.53,231.45,21.5]
[1759428676305,11.59647521,231.53,231.46,4.32040093]
[1759428676610,4.31892793,231.54,231.47,20.8]
[1759428676611,10.87647521,231.54,231.47,20.8]
[1759428676806,10.87647521,231.54,231.47,0.7]
[1759428676978,10.87647521,231.54,231.49,20.8]
[1759428677184,11.59647521,231.54,231.49,20.8]
[1759428677379,0.72,231.54,231.49,20.8]
[1759428677579,5.03854028,231.56,231.49,21.5]
[1759428677803,4.31854028,231.56,231.49,20.8]
[1759428678009,5.03854028,231.56,231.49,20.8]
[1759428678395,5.03854028,231.56,231.49,25.1196932]
[1759428678909,0.72,231.56,231.51,20.8]
[1759428679088,0.72,231.56,231.49,4.3196932]
[1759428679289,11.59647521,231.56,231.51,20.8]
[1759428680212,15.91504055,231.56,231.51,24.19401852]
[1759428680609,15.91504055,231.56,231.51,20.8]
[1759428680921,10.87647521,231.54,231.51,20.8]
[1759428682307,10.87647521,231.54,231.51,24.22078717]
[1759428682801,0.72,231.57,231.51,24.22078717]
[1759428683714,10.87647521,231.55,231.44,0.7]
[1759428683915,10.87647521,231.53,231.44,4.23817221]
[1759428684215,10.87647521,231.51,231.45,20.8]
[1759428684611,10.87647521,231.55,231.46,0.7]
[1759428684804,10.87647521,231.55,231.49,20.8]
[1759428685001,10.87647521,231.55,231.5,20.8]
[1759428685314,10.87647521,231.53,231.5,20.8]
[1759428685706,11.56647521,231.57,231.5,21.5]
[1759428686208,10.87647521,231.57,231.5,21.5]
[1759428686713,10.87647521,231.57,231.51,20.8]
[1759428687019,10.87647521,231.57,231.52,4.31928127]
[1759428687393,11.56647521,231.57,231.52,4.31928127]
[1759428687989,10.87647521,231.55,231.52,4.31928127]
[1759428688419,10.87647521,231.57,231.52,4.31928127]
[1759428688718,10.87647521,231.55,231.51,25.11946491]
[1759428689108,10.76253522,231.55,231.51,25.11946491]
[1759428689316,10.76253522,231.55,231.52,20.8]
[1759428690715,0.69,231.55,231.51,20.8]
[1759428691017,0.69,231.54,231.51,20.8]
[1759428691317,10.87647521,231.53,231.51,20.8]
[1759428691499,11.56647521,231.57,231.51,20.8]
[1759428691992,11.56647521,231.57,231.51,0.67]
[1759428692187,10.87647521,231.57,231.51,0.67]
[1759428692417,10.87647521,231.57,231.52,4.31928127]
[1759428692601,10.87647521,231.57,231.53,0.67]
[1759428692919,10.87647521,231.59,231.53,0.67]
[1759428693098,10.87647521,231.59,231.52,4.31928127]
[1759428693299,11.54647521,231.59,231.52,4.31928127]
[1759428694095,11.54647521,231.59,231.53,20.8]
[1759428694612,11.54647521,231.59,231.54,4.31890818]
[1759428694916,10.87647521,231.57,231.54,4.31890818]
[1759428695700,10.87647521,231.61,231.55,0.67]
[1759428695906,10.87647521,231.63,231.55,0.67]
[1759428696701,10.87647521,231.63,231.57,20.8]
[1759428696902,0.67,231.63,231.57,20.8]
[1759428697402,0.67,231.63,231.59,20.8]
[1759428698595,0.67,231.63,231.59,25.11793508]
[1759428698791,0.67,231.62,231.59,20.8]
[1759428699114,0.67,231.61,231.57,4.31818999]
[1759428699494,0.67,231.6,231.57,4.31818999]
[1759428699702,0.67,231.62,231.58,20.8]
[1759428700503,10.87647521,231.63,231.57,4.31818999]
[1759428700794,0.67,231.62,231.58,20.8]
[1759428700997,0.67,231.61,231.58,20.8]
[1759428701717,0.67,231.61,231.57,4.31818999]
[1759428701897,0.67,231.61,231.58,20.8]
[1759428702095,15.19372301,231.63,231.58,20.8]
[1759428702096,10.87647521,231.63,231.58,20.8]
[1759428702310,4.31670875,231.66,231.59,0.67]
[1759428702311,10.87647521,231.65,231.59,0.67]
[1759428702495,10.87647521,231.63,231.58,20.8]
[1759428702700,0.67,231.62,231.59,20.8]
[1759428703305,4.31686317,231.65,231.59,20.8]
[1759428703510,10.87647521,231.63,231.59,20.8]
[1759428703709,11.54647521,231.63,231.59,20.8]
[1759428704027,10.87647521,231.64,231.59,20.8]
[1759428704212,0.67,231.63,231.59,20.8]
[1759428704601,10.87647521,231.64,231.59,20.8]
[1759428704909,0.67,231.63,231.59,20.8]
[1759428706111,10.87647521,231.61,231.58,20.8]
[1759428706314,11.54647521,231.61,231.58,20.8]
[1759428706714,4.31709368,231.64,231.58,20.8]
[1759428706715,10.87647521,231.62,231.58,20.8]
[1759428707031,11.54647521,231.62,231.58,20.8]
[1759428707199,0.67,231.61,231.58,20.8]
[1759428707397,10.87647521,231.62,231.58,20.8]
[1759428708329,10.87647521,231.62,231.57,4.31833154]
[1759428708497,11.54647521,231.62,231.58,20.8]
[1759428709026,10.87647521,231.62,231.57,4.31833154]
[1759428709209,0.67,231.61,231.57,4.31833154]
[1759428709411,0.67,231.61,231.58,20.8]
[1759428709605,10.87647521,231.62,231.58,20.8]
[1759428709923,10.87647521,231.62,231.56,25.78853515]
[1759428710115,10.87647521,231.62,231.58,20.8]
[1759428710827,0.67,231.62,231.56,57.36853515]
[1759428711233,0.67,231.62,231.56,25.78853515]
[1759428711446,15.19354299,231.64,231.56,57.36853515]
[1759428711746,11.54647521,231.66,231.57,0.67]
[1759428712241,4.31626851,231.69,231.57,0.67]
[1759428712242,10.87647521,231.68,231.57,0.67]
[1759428713135,10.87647521,231.7,231.57,0.67]
[1759428713739,10.87647521,231.7,231.58,15.11356766]
[1759428713908,10.87647521,231.7,231.59,21.47]
[1759428714111,10.87647521,231.7,231.6,0.67]
[1759428714305,11.54647521,231.7,231.64,20.8]
[1759428714708,11.54647521,231.7,231.65,25.11685732]
[1759428714905,0.67,231.69,231.65,25.11685732]
[1759428715133,10.87647521,231.7,231.65,25.11685732]
[1759428715431,0.67,231.69,231.65,25.11685732]
[1759428716511,10.87647521,231.7,231.66,20.8]
[1759428716512,0.67,231.68,231.66,20.8]
[1759428716812,0.67,231.67,231.64,20.8]
[1759428717012,0.67,231.66,231.64,20.8]
[1759428717224,0.67,231.65,231.64,20.8]
[1759428718118,0.67,231.65,231.59,10.7949111]
[1759428718119,11.54647521,231.65,231.59,31.56]
[1759428718314,11.54647521,231.65,231.62,20.8]
[1759428718536,11.54647521,231.64,231.62,20.8]
[1759428718734,11.54647521,231.63,231.62,20.8]
[1759428718914,11.54647521,231.63,231.59,4.31779217]
[1759428718915,11.54647521,231.63,231.6,20.8]
[1759428719217,11.54647521,231.63,231.59,4.31779217]
[1759428719218,0.67,231.62,231.59,4.31779217]
[1759428719624,0.67,231.62,231.6,20.8]
[1759428720135,0.67,231.62,231.59,20.8]
[1759428720638,10.87647521,231.63,231.59,25.11783465]
[1759428720824,31.6,231.72,231.59,25.11783465]
[1759428721016,10.87647521,231.67,231.6,0.67]
[1759428721219,10.87647521,231.7,231.64,20.8]
[1759428721417,10.87647521,231.68,231.64,20.8]
[1759428721641,11.57647521,231.68,231.64,20.8]
[1759428721815,15.19221471,231.71,231.64,20.8]
[1759428722017,0.7,231.67,231.64,20.8]
[1759428722535,15.19221471,231.71,231.64,25.11700151]
[1759428722720,0.7,231.7,231.64,4.31700151]
[1759428723041,10.87647521,231.68,231.64,25.11700151]
[1759428723210,11.57647521,231.68,231.64,25.11700151]
[1759428723623,11.57647521,231.67,231.66,20.8]
[1759428723934,11.57647521,231.67,231.63,4.31721419]
[1759428724636,11.57647521,231.67,231.64,20.8]
[1759428726823,10.87647521,231.67,231.64,20.8]
[1759428727026,10.87647521,231.67,231.65,20.8]
[1759428727354,11.57647521,231.67,231.65,20.8]
[1759428728248,11.57647521,231.67,231.64,20.8]
[1759428728746,10.87647521,231.67,231.64,20.8]
[1759428730029,11.57647521,231.67,231.64,20.8]
[1759428731432,10.87647521,231.66,231.58,10.79515859]
[1759428731643,10.87647521,231.66,231.51,12.96428339]
[1759428731644,0.7,231.65,231.57,4.31834866]
[1759428731944,10.87647521,231.64,231.57,4.31834866]
[1759428732144,10.87647521,231.64,231.59,20.8]
[1759428732341,5.01672013,231.66,231.6,20.8]
[1759428732638,0.7,231.66,231.6,20.8]
[1759428732845,10.87647521,231.68,231.61,0.7]
[1759428733753,11.57647521,231.68,231.6,20.8]
[1759428733935,0.7,231.67,231.6,52.32]
[1759428734118,10.87647521,231.66,231.6,20.8]
[1759428734323,0.7,231.66,231.6,20.8]
[1759428734554,0.7,231.66,231.61,20.8]
[1759428734753,4.31611204,231.69,231.61,20.8]
[1759428734926,11.57647521,231.68,231.61,20.8]
[1759428735322,11.57647521,231.68,231.61,21.5]
[1759428735542,0.1,231.75,231.62,0.7]
[1759428735750,10.87647521,231.72,231.66,20.8]
[1759428736246,0.1,231.75,231.71,20.8]
[1759428736433,10.97647521,231.77,231.71,21.5]
[1759428736434,0.1,231.77,231.71,21.5]
[1759428736844,10.97647521,231.77,231.71,21.5]
[1759428737544,10.97647521,231.77,231.71,20.8]
[1759428738129,10.97647521,231.77,231.71,24.30186074]
[1759428738539,10.78496302,231.81,231.72,0.7]
[1759428738540,10.87647521,231.81,231.72,0.7]
[1759428738747,15.89036638,231.81,231.72,0.7]
[1759428739132,11.57647521,231.81,231.72,0.7]
[1759428739826,10.87647521,231.81,231.72,0.7]
[1759428740036,0.7,231.81,231.76,20.8]
[1759428740360,10.87647521,231.79,231.73,31.5]
[1759428740530,10.87647521,231.79,231.76,20.8]
[1759428740935,11.57647521,231.79,231.75,20.8]
[1759428741554,11.57647521,231.79,231.76,20.8]
[1759428742131,0.7,231.78,231.75,20.8]
[1759428742362,4.31428683,231.79,231.75,20.8]
[1759428742363,0.7,231.77,231.75,20.8]
[1759428742541,15.89128363,231.76,231.68,4.31628749]
[1759428742865,11.57647521,231.75,231.71,20.8]
[1759428743044,0.7,231.74,231.71,20.8]
[1759428743243,0.7,231.73,231.71,20.8]
[1759428743473,10.87647521,231.78,231.71,20.8]
[1759428743745,0.7,231.76,231.71,20.8]
[1759428743958,0.7,231.75,231.71,20.8]
[1759428744255,0.7,231.74,231.71,20.8]
[1759428744653,10.87647521,231.78,231.72,0.67]
[1759428745151,10.87647521,231.79,231.74,20.8]
[1759428746051,11.57647521,231.79,231.74,20.8]
[1759428746754,0.7,231.78,231.74,20.8]
[1759428746959,10.87647521,231.79,231.74,25.11515473]
[1759428747161,11.57647521,231.79,231.74,25.11515473]
[1759428747360,10.87647521,231.77,231.73,20.8]
[1759428747542,11.57647521,231.77,231.74,20.8]
[1759428747749,10.87647521,231.78,231.74,20.8]
[1759428748063,11.57647521,231.78,231.74,20.8]
[1759428748435,0.7,231.77,231.73,20.8]
[1759428750262,5.01419566,231.8,231.74,4.3151808]
[1759428750556,10.87647521,231.79,231.74,25.1151808]
[1759428750758,10.87647521,231.79,231.74,25.7851808]
[1759428751377,10.87647521,231.81,231.74,25.1151808]
[1759428751551,10.87647521,231.81,231.75,0.67]
[1759428751858,10.87647521,231.81,231.77,20.8]
[1759428752062,10.87647521,231.79,231.74,20.8]
[1759428752260,11.59647521,231.79,231.74,20.8]
[1759428752440,11.59647521,231.79,231.74,21.47]
[1759428752952,11.59647521,231.81,231.74,25.78513409]
[1759428753147,11.59647521,231.81,231.74,25.11513409]
[1759428753343,0.72,231.8,231.74,25.11513409]
[1759428753544,10.87647521,231.79,231.75,20.8]
[1759428753864,0.72,231.78,231.75,20.8]
[1759428755352,0.72,231.78,231.74,25.11517392]
[1759428755647,10.87647521,231.79,231.75,20.8]
[1759428755848,11.59647521,231.79,231.75,20.8]
[1759428756045,11.59647521,231.79,231.75,20.20909341]
[1759428756565,10.87647521,231.77,231.7,3.38392874]
[1759428756783,0.72,231.76,231.69,4.31611204]
[1759428756969,10.87647521,231.75,231.69,4.31611204]
[1759428757281,10.87647521,231.75,231.69,15.77639215]
[1759428757572,10.87647521,231.75,231.69,19.26404777]
[1759428758068,10.87647521,231.75,231.72,20.8]
[1759428758480,0.72,231.77,231.73,4.31536702]
[1759428758849,10.87647521,231.76,231.72,20.8]
[1759428759443,10.87647521,231.76,231.72,25.11550047]
[1759428759761,11.59647521,231.76,231.72,25.11550047]
[1759428759964,4.31457387,231.78,231.72,20.8]
[1759428760159,0.72,231.75,231.72,20.8]
[1759428760364,11.59647521,231.77,231.72,20.8]
[1759428760582,0.72,231.76,231.72,20.8]
[1759428762363,0.72,231.76,231.72,20.963134]
[1759428763066,0.72,231.76,231.73,4.31536702]
[1759428763364,0.72,231.76,231.72,20.963134]
[1759428763967,10.87647521,231.84,231.72,0.163134]
[1759428764144,10.87647521,231.74,231.72,0.163134]
[1759428764642,0.72,231.74,231.72,0.163134]
[1759428764849,11.59647521,231.73,231.72,0.163134]
[1759428765063,10.87647521,231.73,231.72,0.163134]
[1759428765464,15.09726954,231.83,231.72,0.833134]
[1759428765646,10.87647521,231.79,231.72,0.833134]
[1759428765850,10.87647521,231.79,231.75,20.8]
[1759428766044,0.72,231.78,231.75,20.8]
[1759428766366,0.72,231.77,231.75,20.8]
[1759428766564,0.72,231.76,231.72,25.27866659]
[1759428766750,0.72,231.76,231.73,20.8]
[1759428767156,0.72,231.78,231.73,20.8]
[1759428768444,4.31425581,231.79,231.73,20.8]
[1759428768644,0.72,231.77,231.74,20.8]
[1759428768873,0.72,231.76,231.74,20.8]
[1759428769082,4.31425581,231.79,231.74,20.8]
[1759428769245,4.31425581,231.79,231.72,4.47863541]
[1759428769246,10.87647521,231.77,231.72,4.47863541]
[1759428769441,0.72,231.76,231.72,0.163134]
[1759428769694,10.87647521,231.75,231.72,0.163134]
[1759428769990,15.19184223,231.73,231.72,0.003134]
[1759428770351,15.91184223,231.73,231.72,0.003134]
[1759428770950,14.91184223,231.73,231.72,0.003134]
[1759428773491,31.42,231.77,231.72,0.003134]
[1759428773492,11.59647521,231.76,231.72,0.003134]
[1759428773680,10.87647521,231.76,231.72,0.003134]
[1759428773977,10.87647521,231.76,231.72,0.673134]
[1759428774357,9.87647521,231.76,231.72,0.673134]
[1759428774553,10.59647521,231.76,231.72,0.003134]
[1759428774962,9.87647521,231.76,231.72,0.003134]
[1759428775570,31.42,231.77,231.72,0.673134]
[1759428775878,31.42,231.77,231.72,21.473134]
[1759428776076,31.42,231.77,231.72,20.803134]
[1759428776378,31.42,231.77,231.73,21.47]
[1759428777677,31.42,231.77,231.72,4.31866774]
[1759428777861,31.42,231.77,231.72,25.78866774]
[1759428778868,10.87647521,231.76,231.72,0.003134]
[1759428779059,4.31435198,231.79,231.72,0.003134]
[1759428779060,10.87647521,231.8,231.73,0.67]
[1759428779773,10.87647521,231.8,231.74,4.3151808]
[1759428780280,15.19055047,231.8,231.74,4.3151808]
[1759428780460,15.19055047,231.8,231.75,20.8]
[1759428780779,0.72,231.79,231.75,20.8]
[1759428781012,0.72,231.78,231.72,4.98854492]
[1759428781167,10.87647521,231.77,231.72,0.003134]
[1759428781365,32.08,231.81,231.73,0.68]
[1759428781567,10.87647521,231.8,231.73,0.68]
[1759428781757,10.87647521,231.8,231.75,20.8]
[1759428782085,10.87647521,231.8,231.75,21.48]
[1759428782760,11.55647521,231.8,231.75,21.48]
[1759428783169,11.55647521,231.8,231.75,20.8]
[1759428783883,11.55647521,231.8,231.75,25.11497051]
[1759428784755,0.68,231.83,231.77,20.8]
[1759428784977,10.87647521,231.82,231.77,20.8]
[1759428785181,10.87647521,231.82,231.77,21.48]
[1759428785382,11.55647521,231.82,231.77,20.8]
[1759428785760,11.55647521,231.82,231.77,25.11447719]
[1759428785986,11.55647521,231.82,231.77,25.79447719]
[1759428786370,11.55647521,231.82,231.77,25.11447719]
[1759428787165,11.55647521,231.82,231.77,25.79447719]
[1759428787778,11.55647521,231.82,231.72,0.683134]
[1759428787779,0.68,231.81,231.72,0.683134]
[1759428787982,10.87647521,231.8,231.72,0.003134]
[1759428788193,0.68,231.81,231.72,0.003134]
[1759428788194,10.87647521,231.78,231.72,0.003134]
[1759428788567,0.68,231.77,231.72,0.003134]
[1759428789069,10.87647521,231.75,231.72,0.003134]
[1759428789881,11.55647521,231.75,231.72,0.003134]
[1759428790591,0.68,231.77,231.72,0.003134]
[1759428790768,0.68,231.75,231.72,0.003134]
[1759428791300,10.87647521,231.78,231.72,0.003134]
[1759428791301,10.87647521,231.76,231.72,0.003134]
[1759428791475,31.38,231.79,231.73,0.68]
[1759428791670,31.38,231.79,231.73,21.48]
[1759428791865,10.87647521,231.81,231.74,0.68]
[1759428793495,0.68,231.8,231.74,0.68]
[1759428793670,10.87647521,231.82,231.75,20.8]
[1759428793671,11.55647521,231.82,231.75,20.8]
[1759428793874,15.87017613,231.82,231.77,20.8]
[1759428794169,0.68,231.81,231.77,20.8]
[1759428794376,15.19017613,231.82,231.77,20.8]
[1759428794377,0.68,231.8,231.77,20.8]
[1759428794560,0.68,231.8,231.74,4.99516025]
[1759428794764,0.68,231.8,231.74,25.79516025]
[1759428795680,4.31410001,231.8,231.74,20.8]
[1759428795881,4.99388294,231.81,231.74,20.8]
[1759428796395,15.19025465,231.82,231.76,20.8]
[1759428796985,0.68,231.81,231.76,20.8]
[1759428797865,0.68,231.81,231.76,25.11474409]
[1759428798069,10.87647521,231.82,231.77,0.68]
[1759428798379,0.68,231.81,231.76,25.11474409]
[1759428798969,0.68,231.81,231.76,25.79474409]
[1759428799186,0.68,231.81,231.76,25.11474409]
[1759428799590,10.87647521,231.82,231.76,25.11474409]
[1759428799776,0.68,231.81,231.76,25.11474409]
[1759428799983,0.68,231.81,231.76,25.79474409]
[1759428800287,0.68,231.81,231.76,25.11474409]
[1759428800594,0.68,231.81,231.76,25.79474409]
[1759428801177,15.19020521,231.82,231.76,20.8]
[1759428801380,10.87647521,231.82,231.76,25.7948006]
[1759428802480,10.87647521,231.82,231.77,4.99448497]
[1759428802888,0.68,231.81,231.75,0.68]
[1759428803472,0.68,231.81,231.75,25.11493287]
[1759428803900,0.68,231.81,231.77,20.8]
[1759428804402,0.72,231.8,231.77,20.8]
[1759428804976,10.87647521,231.82,231.77,20.8]
[1759428805176,0.72,231.81,231.77,20.8]
[1759428806099,15.19019622,231.82,231.77,20.8]
[1759428806401,0.72,231.8,231.77,20.8]
[1759428806899,15.19019622,231.82,231.78,20.8]
[1759428807205,0.72,231.81,231.78,20.8]
[1759428807779,0.72,231.8,231.77,20.8]
[1759428807988,42.19647521,231.79,231.72,20.803134]
[1759428808202,42.91647521,231.79,231.72,20.803134]
[1759428808384,0.72,231.78,231.72,20.803134]
[1759428808696,42.19647521,231.79,231.74,20.8]
[1759428808902,42.91647521,231.79,231.74,25.80506423]
[1759428809296,42.91647521,231.79,231.74,20.8]
[1759428809495,42.91647521,231.79,231.75,20.8]
[1759428809680,0.72,231.78,231.75,20.8]
[1759428811593,4.31449755,231.78,231.75,20.8]
[1759428811794,0.66,231.77,231.75,20.8]
[1759428812700,42.19647521,231.79,231.75,20.8]
[1759428812897,0.66,231.78,231.75,20.8]
[1759428813087,0.66,231.8,231.75,0.7]
[1759428813292,0.66,231.8,231.75,21.5]
[1759428814179,31.3,231.81,231.75,25.11491925]
[1759428814401,31.3,231.81,231.76,0.7]
[1759428815076,31.96,231.81,231.76,0.7]
[1759428815710,31.3,231.81,231.75,25.11493602]
[1759428815886,31.3,231.81,231.77,0.7]
[1759428816410,31.96,231.81,231.75,25.81493602]
[1759428820115,31.96,231.81,231.72,0.003134]
[1759428820116,10.87647521,231.79,231.72,0.003134]
[1759428820610,10.87647521,231.77,231.72,0.003134]
[1759428820788,31.28,231.76,231.73,20.8]
[1759428820996,31.94,231.76,231.73,20.8]
[1759428821392,0.66,231.76,231.73,20.8]
[1759428822514,0.66,231.81,231.74,21.5]
[1759428822689,31.94,231.81,231.76,20.8]
[1759428823095,0.66,231.8,231.76,20.8]
[1759428823704,31.28,231.81,231.76,5.01479011]
[1759428823907,31.28,231.81,231.79,20.8]
[1759428824221,31.94,231.81,231.79,20.8]
[1759428824509,31.28,231.81,231.78,20.8]
[1759428825516,31.28,231.81,231.79,20.8]
[1759428826596,31.28,231.81,231.76,4.31480842]
[1759428826793,31.94,231.81,231.76,5.01480842]
[1759428827714,0.66,231.8,231.76,4.31480842]
[1759428828413,0.66,231.8,231.74,5.01502529]
[1759428828609,4.97412587,231.8,231.74,4.31502529]
[1759428828808,0.66,231.79,231.74,25.11502529]
[1759428828998,0.66,231.78,231.74,25.11502529]
[1759428829198,0.66,231.78,231.74,4.31502529]
[1759428831120,15.19060493,231.8,231.74,4.31502529]
[1759428831305,10.87647521,231.8,231.75,21.5]
[1759428831507,0.66,231.8,231.77,20.8]
[1759428831711,31.28,231.81,231.75,0.7]
[1759428832034,31.28,231.81,231.77,20.8]
[1759428832217,31.28,231.81,231.78,0.7]
[1759428832405,31.28,231.81,231.77,20.8]
[1759428832602,31.28,231.81,231.77,21.5]
[1759428832818,47.10979709,231.84,231.77,21.5]
[1759428833553,46.10979709,231.84,231.78,4.3144361]
[1759428833819,0.66,231.83,231.78,4.3144361]
[1759428834121,45.44979709,231.84,231.78,4.3144361]
[1759428834122,0.66,231.82,231.78,4.3144361]
[1759428836203,0.27335681,231.85,231.79,0.7]
[1759428836807,10.87647521,231.86,231.81,20.8]
[1759428837007,10.87647521,231.86,231.81,21.5]
[1759428838725,11.53647521,231.86,231.81,21.5]
[1759428838925,0.66,231.85,231.78,21.5]
[1759428839120,0.66,231.84,231.78,21.5]
[1759428839321,0.66,231.84,231.58,7.18570298]
[1759428839322,20.0,231.77,231.58,7.18570298]
[1759428839506,20.0,231.77,231.52,0.2]
[1759428839507,10.87647521,231.63,231.52,0.2]
[1759428839708,12.96,231.69,231.53,0.7]
[1759428839709,10.87647521,231.61,231.53,0.7]
[1759428840021,31.9,231.6,231.52,3.64985603]
[1759428840321,0.66,231.59,231.52,0.2]
[1759428840914,4.31816219,231.58,231.52,0.2]
[1759428841115,0.66,231.57,231.52,0.2]
[1759428841320,0.66,231.56,231.52,0.2]
[1759428841616,31.95,231.55,231.52,0.2]
[1759428841932,31.24,231.55,231.52,0.2]
[1759428842523,31.95,231.55,231.52,0.2]
[1759428843033,31.95,231.55,231.52,21.0]
[1759428843236,31.95,231.55,231.52,0.2]
[1759428843819,31.95,231.55,231.52,21.0]
[1759428844826,31.95,231.55,231.52,0.2]
[1759428845151,11.58647521,231.61,231.53,0.7]
[1759428845316,42.82647521,231.61,231.53,0.7]
[1759428845723,42.11647521,231.61,231.55,20.8]
[1759428846126,42.11647521,231.61,231.56,0.7]
[1759428846535,42.11647521,231.61,231.57,0.7]
[1759428846837,31.24,231.61,231.57,0.7]
[1759428847217,31.24,231.61,231.55,5.01854832]
[1759428848021,10.87647521,231.62,231.55,5.01854832]
[1759428849161,0.71,231.66,231.58,20.8]
[1759428849445,31.26,231.66,231.59,0.7]
[1759428850424,10.87647521,231.66,231.59,0.7]
[1759428850623,42.13647521,231.66,231.59,0.7]
[1759428850841,42.13647521,231.66,231.62,20.8]
[1759428851049,0.71,231.65,231.62,20.8]
[1759428853749,42.13647521,231.66,231.62,20.8]
[1759428853951,42.84647521,231.66,231.62,20.8]
[1759428854147,0.71,231.65,231.62,20.8]
[1759428854348,42.13647521,231.66,231.62,20.8]
[1759428854560,0.71,231.65,231.62,20.8]
[1759428855441,42.13647521,231.66,231.52,0.2]
[1759428855442,31.26,231.66,231.6,25.11777912]
[1759428855648,31.26,231.66,231.63,0.7]
[1759428855829,31.26,231.66,231.6,25.11777912]
[1759428856022,10.87647521,231.72,231.64,0.7]
[1759428856418,31.26,231.71,231.64,0.7]
[1759428857357,24.54647521,231.7,231.52,0.2]
[1759428857648,10.87647521,231.58,231.52,0.2]
[1759428857833,10.87647521,231.56,231.52,0.2]
[1759428858224,0.71,231.55,231.52,0.2]
[1759428858435,10.87647521,231.53,231.52,0.2]
[1759428858640,10.87647521,231.57,231.52,0.2]
[1759428858949,10.87647521,231.57,231.52,0.9]
[1759428859138,32.35,231.6,231.55,20.8]
[1759428859139,10.87647521,231.59,231.55,20.8]
[1759428859446,10.87647521,231.57,231.55,20.8]
[1759428859650,10.87647521,231.57,231.53,20.8]
[1759428859829,0.71,231.56,231.52,0.2]
[1759428860029,11.58647521,231.55,231.52,0.2]
[1759428860230,0.71,231.54,231.52,0.2]
[1759428860452,10.87647521,231.55,231.52,0.2]
[1759428860747,11.58647521,231.55,231.52,0.2]
[1759428861642,0.71,231.54,231.52,0.2]
[1759428861838,15.19524677,231.55,231.52,0.2]